fUSD/lending_fUSD_20240423
["ID","MTS","AMOUNT","RATE_DAILY","PERIOD"]
[323301031,1713881460198,-577.41,0.00012836,2]
[323301032,1713881460207,-500.0,0.00012836,2]
[323301033,1713881460216,-500.0,0.00012836,2]
[323301034,1713881460225,-500.0,0.00012836,2]
[323301035,1713881460234,-500.0,0.00012836,2]
[323301036,1713881460243,-500.0,0.00012836,2]
[323301037,1713881460251,-500.0,0.00012836,2]
[323301038,1713881460265,-637.33,0.00012836,2]
[323301039,1713881460274,-1071.26,0.00012836,2]
[323301040,1713881460284,-500.0,0.00012836,2]
[323301041,1713881460293,-6002.69,0.00012836,2]
[323301042,1713881460302,-596.78,0.00012837,2]
[323301043,1713881460311,-500.0,0.00012837,2]
[323301044,1713881460321,-528.29,0.00012837,2]
[323301045,1713881460330,-500.0,0.00012837,2]
[323301046,1713881460340,-500.0,0.00012837,2]
[323301047,1713881460349,-500.0,0.00012837,2]
[323301048,1713881460358,-500.0,0.00012837,2]
[323301049,1713881460368,-772.48,0.00012837,2]
[323301050,1713881460377,-500.0,0.00012837,2]
[323301051,1713881460386,-298.48,0.00012837,2]
[323301052,1713881460396,-500.0,0.00012837,2]
[323301053,1713881460405,-500.0,0.00012837,2]
[323301054,1713881460415,-500.0,0.00012837,2]
[323301055,1713881460424,-404.14629198,0.00012837,2]
[323301056,1713881460433,-500.0,0.00012837,2]
[323301057,1713881460443,-500.0,0.00012837,2]
[323301058,1713881460452,-501.37,0.00012837,2]
[323301059,1713881460462,-500.0,0.00012837,2]
[323301060,1713881460471,-500.0,0.00012837,2]
[323301061,1713881460481,-500.0,0.00012837,2]
[323301062,1713881460491,-500.0,0.00012837,2]
[323301063,1713881460500,-824.72,0.00012837,2]
[323301064,1713881460512,-500.0,0.00012837,2]
[323301065,1713881460522,-398.66608913,0.00012837,2]
[323301066,1713881460531,-500.0,0.00012837,2]
[323301067,1713881460540,-500.0,0.00012837,2]
[323301068,1713881460549,-500.0,0.00012837,2]
[323301069,1713881460558,-500.0,0.00012837,2]
[323301070,1713881460567,-500.0,0.00012837,2]
[323301071,1713881460577,-1172.37,0.00012837,2]
[323301072,1713881460586,-500.0,0.00012837,2]
[323301073,1713881460596,-535.55,0.00012837,2]
[323301074,1713881460606,-507.69,0.00012837,2]
[323301075,1713881460615,-500.0,0.00012837,2]
[323301076,1713881460625,-500.0,0.00012837,2]
[323301077,1713881460634,-500.0,0.00012837,2]
[323301078,1713881460646,-500.0,0.00012837,2]
[323301079,1713881460657,-500.0,0.00012837,2]
[323301080,1713881460667,-781.53,0.00012837,2]
[323301081,1713881460679,-500.0,0.00012837,2]
[323301082,1713881460689,-780.47,0.00012837,2]
[323301083,1713881460699,-500.0,0.00012837,2]
[323301084,1713881460708,-500.0,0.00012837,2]
[323301085,1713881460719,-599.15,0.00012837,2]
[323301086,1713881460728,-500.0,0.00012837,2]
[323301087,1713881460739,-500.0,0.00012837,2]
[323301088,1713881460748,-500.0,0.00012837,2]
[323301089,1713881460757,-578.87,0.00012837,2]
[323301090,1713881460771,-744.94,0.00012837,2]
[323301091,1713881460780,-500.0,0.00012837,2]
[323301092,1713881460790,-500.0,0.00012837,2]
[323301093,1713881460799,-723.83,0.00012837,2]
[323301094,1713881460809,-500.0,0.00012837,2]
[323301095,1713881460818,-500.0,0.00012837,2]
[323301096,1713881460828,-500.0,0.00012837,2]
[323301097,1713881460838,-711.07,0.00012837,2]
[323301098,1713881460847,-500.0,0.00012837,2]
[323301099,1713881460856,-500.0,0.00012837,2]
[323301100,1713881460866,-500.0,0.00012837,2]
[323301101,1713881460875,-500.0,0.00012837,2]
[323301102,1713881460885,-500.0,0.00012837,2]
[323301103,1713881460895,-500.0,0.00012837,2]
[323301104,1713881460904,-559.2,0.00012837,2]
[323301105,1713881460914,-500.0,0.00012837,2]
[323301106,1713881460924,-500.0,0.00012837,2]
[323301107,1713881460933,-500.0,0.00012837,2]
[323301108,1713881460943,-500.0,0.00012837,2]
[323301109,1713881460952,-500.0,0.00012837,2]
[323301110,1713881460962,-500.0,0.00012837,2]
[323301111,1713881460971,-500.0,0.00012837,2]
[323301112,1713881460981,-500.0,0.00012837,2]
[323301113,1713881460990,-500.0,0.00012837,2]
[323301114,1713881460999,-500.0,0.00012837,2]
[323301115,1713881461011,-500.0,0.00012837,2]
[323301116,1713881461021,-500.0,0.00012837,2]
[323301117,1713881461030,-500.0,0.00012837,2]
[323301118,1713881461039,-500.0,0.00012837,2]
[323301119,1713881461048,-500.0,0.00012837,2]
[323301120,1713881461057,-500.0,0.00012837,2]
[323301121,1713881461066,-500.0,0.00012837,2]
[323301122,1713881461076,-500.0,0.00012837,2]
[323301123,1713881461085,-578.36,0.00012837,2]
[323301124,1713881461094,-500.0,0.00012837,2]
[323301125,1713881461104,-500.0,0.00012837,2]
[323301126,1713881461115,-500.0,0.00012837,2]
[323301127,1713881461125,-562.49,0.00012837,2]
[323301128,1713881461134,-500.0,0.00012837,2]
[323301129,1713881461143,-500.0,0.00012837,2]
[323301130,1713881461153,-500.0,0.00012837,2]
[323301131,1713881461162,-614.6,0.00012837,2]
[323301132,1713881461173,-776.76,0.00012837,2]
[323301133,1713881461182,-740.69,0.00012837,2]
[323301134,1713881461191,-500.0,0.00012837,2]
[323301135,1713881461200,-500.0,0.00012837,2]
[323301136,1713881461210,-500.0,0.00012837,2]
[323301137,1713881461221,-521.9,0.00012837,2]
[323301138,1713881461231,-500.0,0.00012837,2]
[323301139,1713881461240,-500.0,0.00012837,2]
[323301140,1713881461250,-637.38,0.00012837,2]
[323301141,1713881461261,-500.0,0.00012837,2]
[323301142,1713881461270,-544.33,0.00012837,2]
[323301143,1713881461279,-500.0,0.00012837,2]
[323301144,1713881461289,-500.0,0.00012837,2]
[323301145,1713881461299,-500.0,0.00012837,2]
[323301146,1713881461309,-500.0,0.00012837,2]
[323301147,1713881461320,-500.0,0.00012837,2]
[323301148,1713881461330,-500.0,0.00012837,2]
[323301149,1713881461339,-721.15,0.00012837,2]
[323301150,1713881461350,-500.0,0.00012837,2]
[323301151,1713881461359,-291.12,0.00012837,2]
[323301152,1713881461369,-500.0,0.00012837,2]
[323301153,1713881461378,-500.0,0.00012837,2]
[323301154,1713881461388,-596.19,0.00012837,2]
[323301155,1713881461398,-500.0,0.00012837,2]
[323301156,1713881461407,-500.0,0.00012837,2]
[323301157,1713881461416,-1193.26,0.00012837,2]
[323301158,1713881461425,-195.78178188,0.00012837,2]
[323301159,1713881461435,-576.19,0.00012837,2]
[323301160,1713881461444,-859.52,0.00012837,2]
[323301161,1713881461453,-500.0,0.00012837,2]
[323301162,1713881461462,-895.75,0.00012837,2]
[323301163,1713881461471,-2000.94,0.00012837,2]
[323301164,1713881461480,-500.0,0.00012837,2]
[323301165,1713881461490,-1599.82,0.00012837,2]
[323301166,1713881461499,-682.14,0.00012837,2]
[323301167,1713881461510,-500.0,0.00012837,2]
[323301168,1713881461519,-700.38,0.00012837,2]
[323301169,1713881461529,-8995.29,0.00012837,2]
[323301170,1713881461538,-551.24,0.00012837,2]
[323301171,1713881461548,-504.84,0.00012837,2]
[323301172,1713881461557,-500.0,0.00012837,2]
[323301173,1713881461567,-796.76,0.00012837,2]
[323301174,1713881461576,-500.0,0.00012837,2]
[323301175,1713881461586,-701.6313394,0.00012837,2]
[323301176,1713881462071,-12260.56224255,0.00012837,2]
[323301177,1713881462097,-752.599,0.00012837,2]
[323301178,1713881462109,-7407.00741805,0.00012837,2]
[323301179,1713881462118,-500.0,0.00012837,2]
[323301180,1713881462128,-500.0,0.00012837,2]
[323301181,1713881462137,-500.0,0.00012837,2]
[323301182,1713881462146,-1009.56,0.00012837,2]
[323301183,1713881462155,-500.0,0.00012837,2]
[323301184,1713881462164,-765.59,0.00012837,2]
[323301185,1713881462174,-2492.2,0.00012837,2]
[323301186,1713881462183,-500.0,0.00012837,2]
[323301187,1713881462192,-500.0,0.00012837,2]
[323301188,1713881462201,-508.32,0.00012837,2]
[323301189,1713881462211,-1145.23,0.00012837,2]
[323301190,1713881462220,-407.79,0.00012837,2]
[323301191,1713881462230,-1230.19,0.00012837,2]
[323301192,1713881462239,-500.0,0.00012837,2]
[323301193,1713881462249,-757.79,0.00012837,2]
[323301194,1713881462258,-500.0,0.00012837,2]
[323301195,1713881462270,-500.0,0.00012837,2]
[323301196,1713881462279,-500.0,0.00012837,2]
[323301197,1713881462289,-666.5,0.00012837,2]
[323301198,1713881462298,-500.0,0.00012837,2]
[323301199,1713881462307,-500.0,0.00012837,2]
[323301200,1713881462316,-500.0,0.00012837,2]
[323301201,1713881462325,-500.0,0.00012837,2]
[323301202,1713881462334,-500.0,0.00012837,2]
[323301203,1713881462344,-1000.0,0.00012837,2]
[323301204,1713881462353,-952.47810134,0.00012837,2]
[323301205,1713881462392,-20.89189866,0.00012837,2]
[323301206,1713881462401,-558.76,0.00012837,2]
[323301207,1713881462411,-500.0,0.00012837,2]
[323301208,1713881462420,-521.67,0.00012837,2]
[323301209,1713881462429,-500.0,0.00012837,2]
[323301210,1713881462438,-500.0,0.00012837,2]
[323301211,1713881462448,-500.0,0.00012837,2]
[323301212,1713881462457,-500.0,0.00012837,2]
[323301213,1713881462467,-500.0,0.00012837,2]
[323301214,1713881462477,-500.0,0.00012837,2]
[323301215,1713881462486,-500.0,0.00012837,2]
[323301216,1713881462495,-500.0,0.00012837,2]
[323301217,1713881462505,-1465.1,0.00012837,2]
[323301218,1713881462517,-500.0,0.00012837,2]
[323301219,1713881462527,-500.0,0.00012837,2]
[323301220,1713881462537,-1495.47,0.00012837,2]
[323301221,1713881462547,-500.0,0.00012837,2]
[323301222,1713881462557,-500.0,0.00012837,2]
[323301223,1713881462567,-1679.97,0.00012837,2]
[323301224,1713881462576,-500.0,0.00012837,2]
[323301225,1713881462586,-500.0,0.00012837,2]
[323301226,1713881462596,-500.0,0.00012837,2]
[323301227,1713881462606,-500.0,0.00012837,2]
[323301228,1713881462615,-568.04,0.00012837,2]
[323301229,1713881462625,-500.0,0.00012837,2]
[323301230,1713881462634,-500.0,0.00012837,2]
[323301231,1713881462645,-27.31512463,0.00012837,2]
[323301232,1713881462817,-472.68487537,0.00012837,2]
[323301233,1713881462828,-500.0,0.00012837,2]
[323301234,1713881462838,-500.0,0.00012837,2]
[323301235,1713881462847,-500.0,0.00012837,2]
[323301236,1713881462858,-1293.17,0.00012837,2]
[323301237,1713881462867,-500.0,0.00012837,2]
[323301238,1713881462877,-500.0,0.00012837,2]
[323301239,1713881462887,-150.0,0.00012845,2]
[323301240,1713881462897,-150.0,0.00012853,2]
[323301241,1713881462907,-150.0,0.00012855,2]
[323301242,1713881462916,-150.0,0.00012855,2]
[323301243,1713881462926,-160.65397881,0.00012869,2]
[323301244,1713881462936,-150.0,0.00012871,2]
[323301245,1713881462945,-150.0,0.00012881,2]
[323301246,1713881462955,-150.0,0.00012884,2]
[323301247,1713881462965,-150.0,0.00012886,2]
[323301248,1713881462975,-150.0,0.00012886,2]
[323301249,1713881462984,-150.0,0.00012898,2]
[323301250,1713881462994,-1001.059,0.00012899,2]
[323301251,1713881463004,-246.08712974,0.000129,2]
[323301252,1713881463017,-246.08712967,0.000129,2]
[323301253,1713881463027,-246.08712967,0.000129,2]
[323301254,1713881463037,-246.08712967,0.000129,2]
[323301255,1713881463047,-246.08712967,0.000129,2]
[323301256,1713881463057,-246.08712967,0.000129,2]
[323301257,1713881463066,-246.08712967,0.000129,2]
[323301258,1713881463076,-246.08712967,0.000129,2]
[323301259,1713881463086,-157.31158863,0.000129,2]
[323301260,1713881463096,-157.31158861,0.000129,2]
[323301261,1713881463106,-157.31158861,0.000129,2]
[323301262,1713881463117,-157.31158861,0.000129,2]
[323301263,1713881463127,-3875.01460827,0.000129,2]
[323301264,1713881463137,-1038.09270727,0.000129,2]
[323301265,1713881463147,-1101.32293141,0.000129,2]
[323301266,1713881463156,-758.05937912,0.000129,2]
[323301267,1713881463167,-200.88129127,0.000129,2]
[323301268,1713881463176,-150.0,0.00012901,2]
[323301269,1713881463186,-150.0,0.00012916,2]
[323301270,1713881463195,-150.0,0.00012928,2]
[323301271,1713881463205,-150.0,0.00012937,2]
[323301272,1713881463216,-150.0,0.00012938,2]
[323301273,1713881463225,-425.9817596,0.00012987,2]
[323301274,1713881463235,-405.319024,0.00012987,2]
[323301275,1713881463245,-384.6562884,0.00012987,2]
[323301276,1713881463255,-363.9935528,0.00012987,2]
[323301277,1713881463270,-343.3308172,0.00012987,2]
[323301278,1713881463280,-322.6680816,0.00012987,2]
[323301279,1713881463289,-1552.2588236,0.00012987,2]
[323301280,1713881463298,-1478.3104822,0.00012987,2]
[323301281,1713881463307,-1404.3621407,0.00012987,2]
[323301282,1713881463316,-1330.4137993,0.00012987,2]
[323301283,1713881463326,-1256.4654579,0.00012987,2]
[323301284,1713881463335,-1182.5171165,0.00012987,2]
[323301285,1713881463345,-4270.41794609,0.00012987,2]
[323301286,1713881463620,-500.0,0.00011741,2]
[323301287,1713881463630,-500.0,0.00011741,2]
[323301288,1713881463639,-500.0,0.00011741,2]
[323301289,1713881463650,-1025.65276595,0.00011774,2]
[323301290,1713881463661,-793.89723405,0.00012987,2]
[323301291,1713881463673,-750.0,0.00012987,2]
[323301292,1713881463692,-1997.13,0.00012987,2]
[323301293,1713881463704,-460.34948132,0.00012987,2]
[323301294,1713881463716,-200.05500704,0.00012987,2]
[323301295,1713881463726,-8068.2576758,0.00012987,2]
[323301296,1713881463738,-7664.6656832,0.00012987,2]
[323301297,1713881463749,-7261.0736905,0.00012987,2]
[323301298,1713881463758,-4301.04833257,0.00012987,2]
[323301299,1713881463775,-2556.43336523,0.00012987,2]
[323301300,1713881463785,-6453.8897052,0.00012987,2]
[323301301,1713881463794,-521.80384433,0.00012996,2]
[323301302,1713881463804,-433.53247002,0.00012998,2]
[323301303,1713881463814,-119454.34061533,0.00012998,2]
[323301304,1713881463826,-4328.499685,0.00012998,2]
[323301305,1713881463838,-300.0,0.00012998,2]
[323301306,1713881463850,-18263.35539913,0.00012998,2]
[323301307,1713881463869,-486.70795939,0.00012998,2]
[323301308,1713881463880,-805.95,0.00012998,2]
[323301309,1713881463898,-326.8556886,0.00012998,2]
[323301310,1713881550461,182.79,9.445e-05,2]
[323301311,1713881594058,400.29,9.687e-05,2]
[323301312,1713881761135,1538.45,0.00011181,2]
[323301313,1713881797230,4080.86,0.00011153,2]
[323301314,1713881871503,3079.1,0.00011118,2]
[323301315,1713882027369,155.23150943,0.00011142,2]
[323301316,1713882137291,364.23,0.00011067,2]
[323301317,1713882161096,411.98,9.172e-05,2]
[323301318,1713882202354,23890.0,0.00011028,2]
[323301319,1713882236128,1025.3,0.0001109,2]
[323301320,1713882264913,4253.0,0.0001,2]
[323301321,1713882279938,7670.76,0.00011063,2]
[323301327,1713882415281,176.6,0.00011048,2]
[323301336,1713882584247,919820.0,0.00011,8]
[323301363,1713882632514,-287.87646049,0.00011205,2]
[323301364,1713882632624,-486.915,0.00011205,2]
[323301365,1713882632680,-1720.319673,0.00011205,2]
[323301366,1713882632690,-159.49,0.00011206,2]
[323301367,1713882632700,-1498.740327,0.00011242,2]
[323301368,1713882632737,-3042.779673,0.00011242,2]
[323301369,1713882632746,-159.49,0.000114,2]
[323301370,1713882632755,-86.066887,0.0001157,2]
[323301371,1713882632767,-549.703113,0.0001157,2]
[323301372,1713882632775,-159.49,0.00011595,2]
[323301373,1713882632784,-179.98798159,0.0001164,2]
[323301374,1713882632794,-181.9451404,0.00011696,2]
[323301376,1713882632803,-795.3189297,0.00011696,2]
[323301378,1713882632812,-150.0,0.00011727,2]
[323301380,1713882632821,-421.35898498,0.00011728,2]
[323301382,1713882632831,-1794.53,0.00011728,2]
[323301384,1713882632840,-1158.65851615,0.00011738,2]
[323301454,1713882633535,391.38,9.125e-05,2]
[323301832,1713882638388,-391.38,0.00011388,2]
[323301834,1713882638398,-581.80084062,0.00011738,2]
[323301836,1713882638407,-320.94715381,0.00011738,2]
[323301838,1713882638417,-17504.6879149,0.00011738,2]
[323301840,1713882638426,-1249.27009627,0.00011739,2]
[323301842,1713882638435,-150.99,0.00011739,2]
[323301844,1713882638447,-500.0,0.00011739,2]
[323301846,1713882638456,-1839.78,0.00011739,2]
[323301848,1713882638465,-500.0,0.00011739,2]
[323301849,1713882638474,-500.0,0.00011739,2]
[323301852,1713882638485,-500.0,0.00011739,2]
[323301854,1713882638494,-16145.24,0.00011739,2]
[323301856,1713882638505,-1405.63,0.00011739,2]
[323301858,1713882638513,-500.0,0.00011739,2]
[323301860,1713882638522,-837.3,0.00011739,2]
[323301879,1713882638815,-569.58,0.00011739,2]
[323301881,1713882638825,-528.65,0.00011739,2]
[323301883,1713882638835,-947.88,0.00011739,2]
[323301885,1713882638845,-514.76,0.00011739,2]
[323301887,1713882638855,-500.0,0.00011739,2]
[323301889,1713882638865,-819.03,0.00011739,2]
[323301891,1713882638875,-1925.64,0.00011739,2]
[323301893,1713882638885,-967.05,0.00011739,2]
[323301895,1713882638895,-500.0,0.00011739,2]
[323301897,1713882638905,-500.0,0.00011739,2]
[323301899,1713882638915,-607.08,0.00011739,2]
[323301901,1713882638924,-500.0,0.00011739,2]
[323301903,1713882638934,-500.0,0.00011739,2]
[323301905,1713882638946,-797.05,0.00011739,2]
[323301907,1713882638956,-500.0,0.00011739,2]
[323301909,1713882638966,-722.02,0.00011739,2]
[323301911,1713882638978,-2579.48,0.00011739,2]
[323301913,1713882638989,-500.06,0.00011739,2]
[323301915,1713882638998,-766.59,0.00011739,2]
[323301917,1713882639008,-2576.38,0.00011739,2]
[323301919,1713882639018,-500.0,0.00011739,2]
[323301920,1713882639027,-1999.88,0.00011739,2]
[323301923,1713882639036,-500.0,0.00011739,2]
[323301925,1713882639046,-556.25,0.00011739,2]
[323301927,1713882639057,-500.0,0.00011739,2]
[323301929,1713882639066,-541.03,0.00011739,2]
[323301931,1713882639075,-574.38,0.00011739,2]
[323301933,1713882639085,-607.89,0.00011739,2]
[323301935,1713882639095,-500.0,0.00011739,2]
[323301937,1713882639105,-6823.27,0.00011739,2]
[323301939,1713882639115,-627.17,0.00011739,2]
[323301940,1713882639125,-702.15,0.00011739,2]
[323301942,1713882639135,-500.0,0.00011739,2]
[323301945,1713882639145,-1646.51,0.00011739,2]
[323301947,1713882639155,-504.33,0.00011739,2]
[323301949,1713882639165,-500.0,0.00011739,2]
[323301951,1713882639175,-577.28,0.00011739,2]
[323301953,1713882639185,-4165.32,0.00011739,2]
[323301955,1713882639198,-505.61,0.00011739,2]
[323301957,1713882639210,-500.0,0.00011739,2]
[323301959,1713882639219,-609.75,0.00011739,2]
[323301961,1713882639229,-3771.73,0.00011739,2]
[323301963,1713882639238,-1495.13,0.00011739,2]
[323301965,1713882639249,-1296.08,0.00011739,2]
[323301967,1713882639259,-533.64095566,0.00011739,2]
[323301968,1713882639268,-1019.32,0.00011739,2]
[323301971,1713882639277,-587.52,0.00011739,2]
[323301973,1713882639287,-752.02,0.00011739,2]
[323301975,1713882639296,-500.0,0.00011739,2]
[323301976,1713882639305,-685.8,0.00011739,2]
[323301978,1713882639315,-500.0,0.00011739,2]
[323301980,1713882639324,-500.0,0.00011739,2]
[323301982,1713882639334,-500.0,0.00011739,2]
[323301984,1713882639344,-534.01,0.00011739,2]
[323301986,1713882639353,-500.0,0.00011739,2]
[323301988,1713882639363,-500.0,0.00011739,2]
[323301990,1713882639372,-500.0,0.00011739,2]
[323301992,1713882639383,-500.0,0.00011739,2]
[323301994,1713882639392,-500.0,0.00011739,2]
[323301996,1713882639401,-500.0,0.00011739,2]
[323301998,1713882639410,-500.0,0.00011739,2]
[323302000,1713882639419,-599.73,0.00011739,2]
[323302002,1713882639428,-507.53,0.00011739,2]
[323302004,1713882639438,-500.0,0.00011739,2]
[323302006,1713882639448,-621.92,0.00011739,2]
[323302008,1713882639457,-500.0,0.00011739,2]
[323302010,1713882639467,-500.0,0.00011739,2]
[323302012,1713882639476,-500.0,0.00011739,2]
[323302014,1713882639485,-500.0,0.00011739,2]
[323302016,1713882639495,-1650.42,0.00011739,2]
[323302018,1713882639504,-500.0,0.00011739,2]
[323302020,1713882639514,-500.0,0.00011739,2]
[323302022,1713882639524,-258.64851801,0.00011739,2]
[323302024,1713882639534,-5649.04,0.00011739,2]
[323302026,1713882639543,-500.0,0.00011739,2]
[323302028,1713882639553,-500.0,0.00011739,2]
[323302030,1713882639562,-150.68198827,0.00011739,2]
[323302032,1713882639571,-500.0,0.00011739,2]
[323302034,1713882639581,-500.0,0.00011739,2]
[323302036,1713882639590,-579.89,0.00011739,2]
[323302038,1713882639598,-255.3668917,0.0001174,2]
[323302040,1713882639608,-150.99,0.0001174,2]
[323302041,1713882639618,-662.34,0.0001174,2]
[323302042,1713882639627,-500.0,0.0001174,2]
[323302043,1713882639636,-500.0,0.0001174,2]
[323302044,1713882639645,-621.31,0.0001174,2]
[323302045,1713882639655,-500.0,0.0001174,2]
[323302046,1713882639664,-500.0,0.0001174,2]
[323302047,1713882639674,-500.0,0.0001174,2]
[323302048,1713882639683,-500.0,0.0001174,2]
[323302049,1713882639694,-500.0,0.0001174,2]
[323302050,1713882639704,-524.05,0.0001174,2]
[323302051,1713882639713,-500.0,0.0001174,2]
[323302052,1713882639723,-778.7,0.0001174,2]
[323302054,1713882639732,-500.0,0.0001174,2]
[323302056,1713882639741,-500.0,0.0001174,2]
[323302058,1713882639751,-500.0,0.0001174,2]
[323302060,1713882639760,-500.0,0.0001174,2]
[323302062,1713882639769,-500.0,0.0001174,2]
[323302064,1713882639778,-500.0,0.0001174,2]
[323302066,1713882639788,-500.0,0.0001174,2]
[323302068,1713882639797,-500.0,0.0001174,2]
[323302070,1713882639806,-500.0,0.0001174,2]
[323302072,1713882639816,-500.0,0.0001174,2]
[323302074,1713882639825,-993.19,0.0001174,2]
[323302076,1713882639834,-500.0,0.0001174,2]
[323302078,1713882639844,-953.39,0.0001174,2]
[323302080,1713882639853,-500.0,0.0001174,2]
[323302082,1713882639863,-500.0,0.0001174,2]
[323302084,1713882639872,-500.0,0.0001174,2]
[323302086,1713882639882,-500.0,0.0001174,2]
[323302088,1713882639891,-500.0,0.0001174,2]
[323302090,1713882639900,-410.4556407,0.0001174,2]
[323302096,1713882639952,-89.5443593,0.0001174,2]
[323302098,1713882639962,-500.0,0.0001174,2]
[323302100,1713882639972,-500.0,0.0001174,2]
[323302102,1713882639984,-500.0,0.0001174,2]
[323302104,1713882639993,-300.84361558,0.0001174,2]
[323302120,1713882640111,-690.31638442,0.0001174,2]
[323302123,1713882640133,-500.0,0.0001174,2]
[323302126,1713882640156,-500.0,0.0001174,2]
[323302132,1713882640179,-500.0,0.0001174,2]
[323302135,1713882640207,-500.0,0.0001174,2]
[323302140,1713882640229,-500.0,0.0001174,2]
[323302143,1713882640250,-500.0,0.0001174,2]
[323302147,1713882640272,-511.20588923,0.0001174,2]
[323302151,1713882640294,-500.0,0.0001174,2]
[323302155,1713882640315,-500.0,0.0001174,2]
[323302158,1713882640337,-500.0,0.0001174,2]
[323302161,1713882640360,-692.98,0.0001174,2]
[323302165,1713882640382,-500.0,0.0001174,2]
[323302168,1713882640403,-500.0,0.0001174,2]
[323302172,1713882640425,-740.72,0.0001174,2]
[323302175,1713882640449,-500.0,0.0001174,2]
[323302179,1713882640471,-500.0,0.0001174,2]
[323302182,1713882640493,-500.0,0.0001174,2]
[323302185,1713882640516,-500.0,0.0001174,2]
[323302189,1713882640538,-860.43,0.0001174,2]
[323302192,1713882640561,-500.0,0.0001174,2]
[323302196,1713882640583,-295.41449985,0.0001174,2]
[323302199,1713882640605,-500.0,0.0001174,2]
[323302202,1713882640628,-500.0,0.0001174,2]
[323302206,1713882640649,-500.0,0.0001174,2]
[323302209,1713882640671,-500.0,0.0001174,2]
[323302213,1713882640695,-703.03,0.0001174,2]
[323302216,1713882640718,-500.0,0.0001174,2]
[323302219,1713882640740,-1062.03,0.0001174,2]
[323302223,1713882640765,-501.79555394,0.0001174,2]
[323302226,1713882640786,-500.0,0.0001174,2]
[323302229,1713882640808,-500.0,0.0001174,2]
[323302233,1713882640831,-500.0,0.0001174,2]
[323302236,1713882640854,-500.0,0.0001174,2]
[323302239,1713882640877,-500.0,0.0001174,2]
[323302243,1713882640900,-500.0,0.0001174,2]
[323302246,1713882640923,-685.82,0.0001174,2]
[323302252,1713882640949,-500.0,0.0001174,2]
[323302256,1713882640974,-465.4424497,0.0001174,2]
[323302260,1713882640996,-500.0,0.0001174,2]
[323302263,1713882641019,-500.0,0.0001174,2]
[323302266,1713882641041,-500.0,0.0001174,2]
[323302270,1713882641065,-625.43,0.0001174,2]
[323302273,1713882641089,-500.0,0.0001174,2]
[323302276,1713882641113,-500.0,0.0001174,2]
[323302280,1713882641142,-370.42095152,0.0001174,2]
[323302284,1713882641165,-672.07,0.0001174,2]
[323302287,1713882641188,-500.0,0.0001174,2]
[323302291,1713882641215,-500.0,0.0001174,2]
[323302293,1713882641237,-500.0,0.0001174,2]
[323302296,1713882641261,-517.8,0.0001174,2]
[323302300,1713882641283,-500.0,0.0001174,2]
[323302303,1713882641305,-500.0,0.0001174,2]
[323302307,1713882641327,-233.90899922,0.0001174,2]
[323302310,1713882641349,-500.0,0.0001174,2]
[323302313,1713882641370,-222.99303092,0.0001174,2]